bitfinex-derivatives/quotes_ETHF0:USTF0_20250323
["timestamp","ask_amount","ask_price","bid_price","bid_amount"]
[1742694169145,2.30713,1996.3,1996.2,2.38819635]
[1742694169347,2.30713,1996.3,1996.2,1.38611635]
[1742694169746,2.30713,1996.3,1996.2,2.38819635]
[1742694170350,2.30713,1996.3,1996.2,1.38611635]
[1742694170553,2.30713,1996.3,1996.2,2.38819635]
[1742694171050,2.30713,1996.3,1996.2,1.38611635]
[1742694172147,2.30713,1996.3,1996.2,2.38819635]
[1742694173848,1.3051,1996.3,1996.2,2.38819635]
[1742694174253,2.30713,1996.3,1996.2,2.38819635]
[1742694174459,1.3051,1996.3,1996.2,2.38819635]
[1742694174854,1.66969,1996.6,1996.2,1.38611635]
[1742694175060,3.74469,1996.6,1996.4,1.00194]
[1742694175357,1.3784,1996.5,1996.4,1.00194]
[1742694175556,2.38033,1996.5,1996.4,1.00194]
[1742694176157,1.00198,1996.4,1996.3,1.67229]
[1742694176359,2.30468,1996.4,1996.3,1.00199]
[1742694178364,1.3027,1996.4,1996.3,1.00199]
[1742694179263,1.00203,1996.3,1996.2,0.00751635]
[1742694179464,1.63463,1996.3,1996.2,0.00751635]
[1742694180172,1.63463,1996.3,1996.2,1.00959635]
[1742694180472,1.63463,1996.3,1996.2,0.00751635]
[1742694180670,2.50528,1996.2,1995.7,3.2078]
[1742694180972,1.00245,1995.5,1995.4,1.00245]
[1742694181365,1.0025,1995.4,1995.3,1.0025]
[1742694182165,1.32141635,1995.5,1995.4,1.00248]
[1742694183475,2.32384635,1995.5,1995.4,1.00248]
[1742694185075,1.32141635,1995.5,1995.4,1.00248]
[1742694189480,2.32384635,1995.5,1995.4,1.00248]
[1742694190170,1.00248,1995.4,1995.3,2.2893]
[1742694190373,3.07808,1995.4,1995.3,2.2893]
[1742694190571,2.0756,1995.4,1995.3,2.2893]
[1742694190777,1.3908,1995.4,1995.3,2.2893]
[1742694190967,2.39328,1995.4,1995.3,2.2893]
[1742694191767,2.39328,1995.4,1995.3,1.2868]
[1742694191971,1.00253,1995.3,1995.2,1.67696635]
[1742694192171,2.97263,1995.3,1995.2,2.97666635]
[1742694192377,2.97263,1995.3,1995.2,2.30976635]
[1742694193181,2.97263,1995.3,1995.2,1.30721635]
[1742694193482,2.97263,1995.3,1995.2,0.00751635]
[1742694194075,2.97263,1995.3,1995.2,1.30721635]
[1742694194475,2.97263,1995.3,1995.2,2.30979635]
[1742694194671,1.9701,1995.3,1995.2,2.30979635]
[1742694194985,2.97263,1995.3,1995.2,2.30979635]
[1742694195283,1.9701,1995.3,1995.2,2.30979635]
[1742694196274,1.2853,1995.3,1995.2,2.30979635]
[1742694196485,1.00251,1995.4,1995.3,1.00253]
[1742694196684,2.32231,1995.4,1995.3,2.34733]
[1742694199680,3.21531635,1995.5,1995.3,2.34733]
[1742694199886,3.21531635,1995.5,1995.4,2.93278]
[1742694200476,4.59411635,1995.5,1995.4,2.93278]
[1742694201384,5.59654635,1995.5,1995.4,2.93278]
[1742694201781,6.29684635,1995.5,1995.4,2.93278]
[1742694202575,5.29441635,1995.5,1995.4,2.93278]
[1742694203580,6.29684635,1995.5,1995.4,2.93278]
[1742694210391,6.29689635,1995.5,1995.4,1.00248]
[1742694211094,6.29689635,1995.5,1995.4,2.35498]
[1742694212989,5.29441635,1995.5,1995.4,2.35498]
[1742694214597,6.29684635,1995.5,1995.4,2.35498]
[1742694216599,5.29441635,1995.5,1995.4,2.35498]
[1742694217699,2.08661635,1995.5,1995.4,2.35498]
[1742694217901,3.08904635,1995.5,1995.4,2.35498]
[1742694218393,2.08661635,1995.5,1995.4,2.35498]
[1742694219804,3.08904635,1995.5,1995.4,2.35498]
[1742694220003,2.08661635,1995.5,1995.4,2.35498]
[1742694221795,3.08904635,1995.5,1995.4,2.35498]
[1742694221995,2.08661635,1995.5,1995.4,2.35498]
[1742694222195,2.38874635,1995.5,1995.4,2.35498]
[1742694222396,1.38631635,1995.5,1995.4,2.35498]
[1742694223997,0.00751635,1995.5,1995.4,2.35498]
[1742694224201,1.00223,1996.0,1995.9,1.0022]
[1742694224602,1.00227,1995.9,1995.8,1.00224]
[1742694225006,1.69791,1996.0,1995.9,1.00223]
[1742694225303,3.01142635,1996.0,1995.9,1.00223]
[1742694228600,1.31351635,1996.0,1995.9,1.00223]
[1742694229205,1.31351635,1996.0,1995.9,2.39043]
[1742694229798,2.31569635,1996.0,1995.9,2.39043]
[1742694230308,1.31351635,1996.0,1995.9,2.39043]
[1742694232812,2.31569635,1996.0,1995.9,2.39043]
[1742694233009,1.31351635,1996.0,1995.9,2.39043]
[1742694236607,2.31569635,1996.0,1995.9,2.39043]
[1742694239012,1.31351635,1996.0,1995.9,2.39043]
[1742694239406,0.00751635,1996.0,1995.9,2.39043]
[1742694240610,1.36311635,1996.0,1995.9,2.39043]
[1742694263226,1.00232,1995.8,1995.7,1.00231]
[1742694263419,1.00232,1995.8,1995.5,46.324]
[1742694263420,1.00233,1995.7,1995.6,2.29444]
[1742694263627,2.38803,1995.7,1995.6,2.29444]
[1742694263936,1.3857,1995.7,1995.6,2.29444]
[1742694271938,2.38803,1995.7,1995.6,2.29444]
[1742694272738,1.3857,1995.7,1995.6,2.29444]
[1742694274539,2.38803,1995.7,1995.6,2.29444]
[1742694274733,1.3857,1995.7,1995.6,2.29444]
[1742694275138,2.38803,1995.7,1995.6,2.29444]
[1742694275436,1.3857,1995.7,1995.6,2.29444]
[1742694276135,2.38803,1995.7,1995.6,2.29444]
[1742694276833,1.00241,1995.6,1995.4,3.9086]
[1742694277034,3.69061,1995.6,1995.4,4.537]
[1742694277242,3.69061,1995.6,1995.5,1.00238]
[1742694277737,2.6882,1995.6,1995.5,1.00238]
[1742694277935,2.6882,1995.6,1995.5,2.33158]
[1742694281037,3.69058,1995.6,1995.5,2.33158]
[1742694281543,2.6882,1995.6,1995.5,2.33158]
[1742694284040,3.69058,1995.6,1995.5,2.33158]
[1742694286847,2.6882,1995.6,1995.5,2.33158]
[1742694291250,3.69058,1995.6,1995.5,2.33158]
[1742694298356,2.6882,1995.6,1995.5,2.33158]
[1742694298659,3.69058,1995.6,1995.5,2.33158]
[1742694298850,2.6882,1995.6,1995.5,2.33158]
[1742694299558,3.69058,1995.6,1995.5,2.33158]
[1742694299758,2.6882,1995.6,1995.5,2.33158]
[1742694300862,3.69058,1995.6,1995.5,2.33158]
[1742694301063,3.69058,1995.6,1995.5,1.3292]
[1742694301762,1.00243,1995.5,1995.4,1.00245]
[1742694301962,2.37363,1995.5,1995.4,1.00245]
[1742694304664,1.3712,1995.5,1995.4,1.00245]
[1742694304863,2.37363,1995.5,1995.4,1.00245]
[1742694305471,1.3712,1995.5,1995.4,1.00245]
[1742694305859,0.6828,1995.8,1995.4,4.21024]
[1742694306067,1.00238,1995.6,1995.5,1.2909]
[1742694307463,3.83131,1995.7,1995.3,1.0025]
[1742694307660,1.00248,1995.4,1995.3,2.318]
[1742694308066,3.09298,1995.4,1995.3,2.318]
[1742694308467,3.09298,1995.4,1995.3,1.3155]
[1742694309062,3.09298,1995.4,1995.3,2.31803]
[1742694309262,3.09298,1995.4,1995.3,1.3155]
[1742694310772,1.00253,1995.3,1995.2,0.00751635]
[1742694310974,2.28973,1995.3,1995.2,0.00751635]
[1742694318477,1.00273,1994.9,1994.8,4.85064]
[1742694318980,1.00273,1994.9,1994.8,4.85068]
[1742694319982,1.00273,1994.9,1994.8,6.11548]
[1742694320482,1.00273,1994.9,1994.8,1.9049]
[1742694320679,5.7078,1994.9,1994.4,3.2078]
[1742694320883,1.00296,1994.5,1994.4,4.21078]
[1742694321086,1.00296,1994.5,1994.4,3.2078]
[1742694321682,1.66156,1994.5,1994.4,3.2078]
[1742694325588,1.00298,1994.4,1994.3,0.00751635]
[1742694325779,2.96928,1994.4,1994.3,0.00751635]
[1742694326184,2.96928,1994.4,1993.9,5.71578]
[1742694326185,1.00324,1994.0,1993.9,1.00321]
[1742694326389,1.00311,1994.2,1993.8,3.85999]
[1742694326583,0.6586,1994.5,1994.1,3.2078]
[1742694326783,1.00299,1994.4,1994.3,1.00299]
[1742694327184,1.00303,1994.3,1994.2,2.35485]
[1742694327378,1.00303,1994.3,1994.2,2.36236635]
[1742694328388,1.00295,1994.5,1994.4,1.00298]
[1742694328690,0.00751635,1994.6,1994.5,1.00293]
[1742694329883,0.00751635,1994.6,1994.4,1.00296]
[1742694330081,1.00295,1994.5,1994.4,1.00296]
[1742694330283,2.40891635,1994.6,1994.5,1.00293]
[1742694330785,1.00295,1994.5,1994.4,1.00296]
[1742694331790,1.00295,1994.5,1994.3,3.2078]
[1742694331791,2.40891635,1994.6,1994.5,1.00293]
[1742694331987,1.00294,1994.5,1994.4,1.00295]
[1742694332194,2.40893635,1994.6,1994.4,1.00295]
[1742694332390,2.40893635,1994.6,1994.5,0.6621]
[1742694332587,2.40893635,1994.6,1994.5,1.3457]
[1742694333189,3.07943635,1994.6,1994.5,1.3457]
[1742694333694,1.00303,1994.3,1994.2,1.01057635]
[1742694333896,1.00303,1994.3,1994.2,1.36371635]
[1742694334499,1.00303,1994.3,1994.2,0.00751635]
[1742694334993,2.27973,1994.3,1994.2,0.00751635]
[1742694340199,2.94683,1994.3,1994.2,0.00751635]
[1742694356012,2.94683,1994.3,1993.9,1.3633]
[1742694356013,1.00318,1994.0,1993.9,0.6692]
[1742694356197,1.00318,1994.0,1993.9,2.0707]
[1742694356600,3.02198,1994.0,1993.9,2.0707]
[1742694357102,3.02198,1994.0,1993.9,1.4015]
[1742694365902,3.02198,1994.0,1993.8,0.00751635]
[1742694365903,1.00329,1993.8,1993.4,4.21125]
[1742694366210,1.00339,1993.6,1993.5,2.0054]
[1742694366610,2.27939,1993.6,1993.5,2.0054]
[1742694366812,2.27939,1993.6,1993.5,3.00884]
[1742694368010,2.27939,1993.6,1993.5,2.0054]
[1742694369418,2.27939,1993.6,1993.5,3.00884]
[1742694370019,1.00335,1993.7,1993.5,2.0054]
[1742694370319,2.33055,1993.7,1993.6,2.36339]
[1742694370512,1.00335,1993.7,1993.6,3.05679]
[1742694371319,1.00335,1993.7,1993.6,2.0534]
[1742694372319,1.00335,1993.7,1993.6,3.05679]
[1742694373517,1.2981,1994.0,1993.6,4.56182]
[1742694373723,1.00329,1993.8,1993.7,2.36309]
[1742694374113,1.00329,1993.8,1993.7,1.3598]
[1742694374522,1.00329,1993.8,1993.7,2.36314]
[1742694376619,1.00329,1993.8,1993.7,1.3598]
[1742694377319,1.00329,1993.8,1993.7,2.36314]
[1742694378921,2.38107,1993.9,1993.8,1.00329]
[1742694379118,2.38107,1993.9,1993.8,2.98979]
[1742694383824,1.3778,1993.9,1993.8,2.98979]
[1742694384628,1.00311,1994.2,1993.8,6.19759]
[1742694384925,2.31351,1994.2,1994.1,1.00308]
[1742694385330,3.2078,1994.3,1994.0,1.3035]
[1742694385518,4.5182,1994.3,1994.1,0.6981]
[1742694385720,5.52123,1994.3,1994.2,2.30658]
[1742694385919,4.21083,1994.3,1994.2,2.30658]
[1742694387517,1.00301,1994.4,1994.3,1.00303]
[1742694387814,1.00301,1994.4,1994.3,2.35833]
[1742694400245,2.31841,1994.4,1994.3,2.35833]
[1742694401243,1.3154,1994.4,1994.3,2.35833]
[1742694401541,2.31838,1994.4,1994.3,2.35833]
[1742694404847,0.00751635,1994.6,1994.5,1.00293]
[1742694405447,0.00751635,1994.6,1994.5,2.98413]
[1742694421673,3.2078,1995.2,1995.1,1.00263]
[1742694421971,6.30272,1995.4,1995.3,1.00253]
[1742694422273,2.0924,1995.4,1995.3,1.00253]
[1742694422968,2.0924,1995.4,1995.3,2.30973]
[1742694424364,1.3954,1995.4,1995.3,2.30973]
[1742694424569,0.64781635,1995.5,1995.4,1.00248]
[1742694424570,0.00751635,1995.5,1995.4,1.00248]
[1742694424767,0.00751635,1995.5,1995.4,4.86008]
[1742694426176,1.33881635,1995.5,1995.4,4.86008]
[1742694426974,0.00751635,1995.5,1995.4,4.86008]
[1742694427367,1.3313,1995.8,1995.7,1.00233]
[1742694427567,1.3313,1995.8,1995.7,4.21013]
[1742694430278,2.33363,1995.8,1995.6,2.28095]
[1742694430579,0.6831,1995.7,1995.6,2.28095]
[1742694430770,1.9719,1995.7,1995.6,2.28095]
[1742694432677,2.97423,1995.7,1995.6,2.28095]
[1742694432976,2.97423,1995.7,1995.6,1.00235]
[1742694433178,1.9719,1995.7,1995.6,1.00235]
[1742694433385,1.9719,1995.7,1995.6,2.39275]
[1742694439585,1.2888,1995.7,1995.6,2.39275]
[1742694439890,1.2888,1995.7,1995.6,3.03965]
[1742694443791,1.2888,1995.7,1995.6,2.39275]
[1742694449893,1.35371635,1995.9,1995.8,1.00228]
[1742694450594,1.35371635,1995.9,1995.8,2.31278]
[1742694450595,2.63251635,1995.9,1995.8,2.31278]
[1742694455695,1.94291635,1995.9,1995.8,2.31278]
[1742694456399,1.28631635,1995.9,1995.8,2.31278]
[1742694457401,1.28631635,1995.9,1995.8,2.96319488]
[1742694457589,0.6948,1996.2,1996.1,1.00213]
[1742694457795,0.6948,1996.2,1996.1,4.20993]
[1742694458891,0.6948,1996.2,1996.1,5.53883]
[1742694459096,2.7745,1996.2,1996.1,5.53883]
[1742694460904,2.7745,1996.2,1996.1,2.33103]
[1742694461594,2.7745,1996.2,1996.1,5.53883]
[1742694464005,2.7745,1996.2,1996.1,2.33103]
[1742694465500,2.7745,1996.2,1996.1,5.53883]
[1742694469204,2.0797,1996.2,1996.1,5.53883]
[1742694472209,1.3817,1996.2,1996.1,5.53883]
[1742694473911,0.00751635,1996.3,1996.2,1.00208]
[1742694474107,0.6616,1996.6,1996.5,1.00193]
[1742694474302,0.6616,1996.6,1996.5,4.20973]
[1742694474710,0.6616,1996.6,1996.5,5.60933]
[1742694477610,0.6616,1996.6,1996.5,2.40153]
[1742694478009,1.9654,1996.6,1996.5,2.40153]
[1742694479517,1.3038,1996.6,1996.5,5.60933]
[1742694479716,0.00751635,1996.7,1996.6,1.00188]
[1742694479917,0.00751635,1996.7,1996.6,3.00488]
[1742694480217,1.31131635,1996.7,1996.6,3.00488]
[1742694482722,1.31131635,1996.7,1996.6,6.21268]
[1742694484115,0.6644,1997.0,1996.9,1.00173]
[1742694485928,2.0029,1997.0,1996.9,1.00173]
[1742694491630,1.00173,1996.9,1996.8,2.39945]
[1742694491826,2.98003,1996.9,1996.8,2.39945]
[1742694492430,1.9783,1996.9,1996.8,2.39945]
[1742694495822,1.3411,1996.9,1996.8,5.60725]
[1742694498435,2.0107,1996.9,1996.8,2.39945]
[1742694499831,0.00751635,1997.1,1997.0,1.00168]
[1742694501231,1.28351635,1997.1,1997.0,2.33118]
[1742694511246,1.00168,1997.0,1996.9,1.00169]
[1742694511441,2.28517635,1997.1,1997.0,1.00168]
[1742694511649,0.00751635,1997.1,1996.8,1.2833]
[1742694511845,1.00168,1997.0,1996.9,1.0017]
[1742694512348,1.00917635,1997.1,1996.9,1.0017]
[1742694513246,1.00917635,1997.1,1997.0,1.00168]
[1742694514653,1.00917635,1997.1,1996.9,1.0017]
[1742694514654,1.00171,1997.0,1996.9,1.0017]
[1742694516656,1.00914635,1997.1,1997.0,1.00168]
[1742694516857,0.00751635,1997.1,1997.0,1.00168]
[1742694517152,5.01159635,1997.1,1996.5,2.50472]
[1742694517355,5.01159635,1997.1,1996.6,1.3603]
[1742694517356,3.2078,1996.9,1996.6,1.3603]
[1742694517653,1.00183,1996.7,1996.6,2.36215]
[1742694517850,1.00183,1996.7,1996.6,2.36214]
[1742694518052,8.21239,1996.7,1996.4,0.00751635]
[1742694518253,1.00193,1996.5,1996.4,0.00751635]
[1742694518554,1.00193,1996.5,1996.4,1.00949635]
[1742694518755,1.00193,1996.5,1996.4,0.00751635]
[1742694519457,1.00193,1996.5,1996.4,1.00949635]
[1742694519849,1.00193,1996.5,1996.4,0.00751635]
[1742694522559,1.67753,1996.5,1996.4,0.00751635]
[1742694522958,4.88533,1996.5,1996.4,0.00751635]
[1742694526256,1.00213,1996.2,1996.1,1.0021]
[1742694527161,1.65953,1996.2,1996.1,1.0021]
[1742694527763,1.65953,1996.2,1996.1,2.3853]
[1742694528767,1.65953,1996.2,1996.0,1.00966635]
[1742694528768,1.00213,1996.1,1996.0,1.00966635]
[1742694528966,1.00213,1996.1,1996.0,0.00751635]
[1742694529158,1.00213,1996.1,1996.0,1.00969635]
[1742694530265,2.27673,1996.1,1996.0,1.00969635]
[1742694530966,1.2746,1996.1,1996.0,1.00969635]
[1742694531662,1.00199,1996.4,1996.0,5.72069635]
[1742694531868,1.00207,1996.3,1996.2,1.00204]
[1742694532053,1.00207,1996.3,1996.2,2.37804]
[1742694532258,2.27667,1996.3,1996.2,2.37804]
[1742694536062,2.27667,1996.3,1996.2,1.376]
[1742694536265,2.27667,1996.3,1996.2,2.37808]
[1742694544379,2.27667,1996.3,1996.2,1.376]
[1742694544579,1.00213,1996.1,1996.0,0.00751635]
[1742694545172,3.01843,1996.1,1996.0,0.00751635]
[1742694545479,2.50503,1996.4,1996.3,1.00198]
[1742694545480,1.00198,1996.4,1996.3,1.00198]
[1742694545783,1.002,1996.4,1996.3,1.00198]
[1742694546790,2.3719,1996.4,1996.3,1.00198]
[1742694554591,1.00203,1996.3,1996.2,2.36785]
[1742694554792,2.37023,1996.3,1996.2,2.36785]
[1742694557395,1.3682,1996.3,1996.2,2.36785]
[1742694558794,2.37023,1996.3,1996.2,2.36785]
[1742694558997,1.00213,1996.1,1996.0,0.00751635]
[1742694559191,1.00213,1996.1,1996.0,1.00969635]
[1742694559395,1.00213,1996.1,1996.0,0.00751635]
[1742694559696,2.27743,1996.1,1996.0,2.36039635]
[1742694560104,2.27743,1996.1,1996.0,1.35821635]
[1742694560897,2.27743,1996.1,1996.0,2.36039635]
[1742694561399,2.27743,1996.1,1996.0,1.35821635]
[1742694561700,2.27743,1996.1,1996.0,2.36039635]
[1742694566305,1.2753,1996.1,1996.0,2.36039635]
[1742694566802,3.2078,1996.3,1996.2,1.00208]
[1742694567504,2.39599,1996.4,1996.3,1.00203]
[1742694567905,1.00203,1996.3,1996.2,2.39566]
[1742694568104,2.39603,1996.3,1996.2,1.3936]
[1742694570106,1.394,1996.3,1996.0,0.00751635]
[1742694570302,1.00213,1996.1,1996.0,2.35326635]
[1742694570708,2.38993,1996.1,1996.0,2.35326635]
[1742694570909,1.3878,1996.1,1996.0,2.35326635]
[1742694571510,2.38993,1996.1,1996.0,2.35326635]
[1742694572109,1.3878,1996.1,1996.0,2.35326635]
[1742694572308,2.38993,1996.1,1996.0,2.35326635]
[1742694572810,1.3878,1996.1,1996.0,2.35326635]
[1742694573311,1.68398,1996.2,1996.1,1.00213]
[1742694573511,1.68398,1996.2,1996.1,3.02013]
[1742694573903,0.6819,1996.2,1996.1,3.02013]
[1742694574603,2.98688,1996.2,1996.1,3.02013]
[1742694586117,1.3029,1996.2,1996.1,3.02013]
[1742694588220,2.30498,1996.2,1996.1,3.02013]
[1742694588622,1.3029,1996.2,1996.1,3.02013]
[1742694589523,2.30498,1996.2,1996.1,3.02013]
[1742694589821,1.3029,1996.2,1996.1,3.02013]
[1742694590513,2.30498,1996.2,1996.1,3.02013]
[1742694590922,2.30498,1996.2,1996.1,2.36873]
[1742694592321,2.30498,1996.2,1996.1,1.3666]
[1742694592722,2.30498,1996.2,1996.1,2.36873]
[1742694593018,2.30498,1996.2,1996.1,1.3666]
[1742694593319,1.00213,1996.1,1996.0,0.00751635]
[1742694593520,6.90033,1996.1,1996.0,0.00751635]
[1742694599927,1.00235,1995.7,1995.6,1.00234]
[1742694600119,1.00235,1995.7,1995.6,1.3237]
[1742694600321,1.00238,1995.6,1995.5,1.3237]
[1742694600523,2.30338,1995.6,1995.5,1.3237]
[1742694600825,1.301,1995.6,1995.5,2.32613]
[1742694601127,0.6424,1996.0,1995.6,2.50596]
[1742694601330,0.00751635,1995.7,1995.6,1.67378]
[1742694604432,1.00984635,1995.7,1995.6,1.00238]
[1742694607333,2.38078635,1995.7,1995.6,1.00238]
[1742694608630,1.37841635,1995.7,1995.5,4.86179]
[1742694608831,1.2999,1995.6,1995.5,4.86179]
[1742694609430,2.30228,1995.6,1995.5,4.86179]
[1742694609931,2.30228,1995.6,1995.5,4.21019]
[1742694610135,2.30228,1995.6,1995.5,3.2078]
[1742694610431,1.00243,1995.5,1995.4,0.00751635]
[1742694610628,2.30233,1995.5,1995.4,1.00999635]
[1742694613232,1.2999,1995.5,1995.4,1.00999635]
[1742694613530,1.37841635,1995.7,1995.5,1.00238]
[1742694613833,1.3592,1995.6,1995.5,1.63628]
[1742694615331,2.36158,1995.6,1995.5,1.63628]
[1742694619727,1.00243,1995.5,1995.4,0.00751635]
[1742694619932,2.36283,1995.5,1995.4,1.00995635]
[1742694620528,2.36283,1995.5,1995.4,2.27975635]
[1742694622239,2.36283,1995.5,1995.4,1.27731635]
[1742694623037,2.36283,1995.5,1995.4,0.00751635]
[1742694624031,2.36283,1995.5,1995.4,1.39201635]
[1742694630537,3.8604,1995.5,1994.8,3.2078]
[1742694630745,1.00278,1994.8,1994.7,1.63739]
[1742694630937,1.00278,1994.8,1994.7,3.03879]
[1742694632343,2.40257,1994.9,1994.8,1.00278]
[1742694632649,2.40257,1994.9,1994.8,2.40418]
[1742694633147,2.40257,1994.9,1994.8,1.4014]
[1742694634545,2.40257,1994.9,1994.8,2.40418]
[1742694635955,2.40257,1994.9,1994.8,1.4014]
[1742694636344,3.2078,1996.7,1995.2,3.2078]
[1742694636644,1.00183,1996.7,1996.6,1.00186]
[1742694636838,1.0018,1996.8,1996.6,1.00185]
[1742694637040,1.2843,1996.7,1996.5,1.00189]
[1742694637351,2.28615,1996.7,1996.5,1.00189]
[1742694637653,2.28615,1996.7,1996.4,1.36311635]
[1742694637850,2.28615,1996.7,1996.5,1.00192]
[1742694638953,2.28615,1996.7,1996.6,1.00188]
[1742694639153,1.00193,1996.5,1996.4,0.00751635]
[1742694639353,2.50495,1996.4,1995.9,1.00221]
[1742694639560,1.00216,1996.1,1995.9,1.00219]
[1742694639856,2.086,1996.0,1995.9,1.00223]
[1742694640654,1.00223,1995.9,1995.8,0.00751635]
[1742694640960,2.38923,1995.9,1995.8,0.00751635]
[1742694662163,2.38923,1995.9,1995.0,2.5066]
[1742694662164,1.00258,1995.2,1995.1,4.21042]
[1742694662358,1.00258,1995.2,1995.1,4.5307]
[1742694663256,2.35088,1995.2,1995.1,4.5307]
[1742694670065,2.35088,1995.2,1995.1,1.3229]
[1742694678773,1.00263,1995.1,1995.0,0.00751635]
[1742694678985,2.40263,1995.1,1995.0,1.28691635]
[1742694680178,2.40263,1995.1,1995.0,0.00751635]
[1742694683577,2.40263,1995.1,1995.0,1.33281635]
[1742694694087,1.00278,1994.8,1994.7,3.2078]
[1742694694682,1.00283,1994.7,1994.6,0.6479]
[1742694695476,1.00283,1994.7,1994.6,1.99]
[1742694698083,1.00283,1994.7,1994.6,2.99288]
[1742694698787,1.00283,1994.7,1994.6,1.99]
[1742694699489,1.00283,1994.7,1994.6,2.99288]
[1742694706596,1.00283,1994.7,1994.6,1.99]
[1742694707086,1.00283,1994.7,1994.6,2.99288]
[1742694708795,1.00283,1994.7,1994.6,1.99]
[1742694714999,1.00283,1994.7,1994.6,2.99288]
[1742694715297,1.00283,1994.7,1994.6,1.99]
[1742694716298,1.00283,1994.7,1994.6,1.3421]
[1742694716494,1.63823,1994.7,1994.6,1.3421]
[1742694722003,1.63823,1994.7,1994.6,2.34498]
[1742694722004,1.00283,1994.7,1994.6,2.34498]
[1742694722205,1.00283,1994.7,1994.6,3.67368]
[1742694722601,1.00281,1994.8,1994.7,1.00278]
[1742694722904,1.00281,1994.8,1994.7,5.59258]
[1742694723504,2.40571,1994.8,1994.7,5.59258]
[1742694724810,2.40571,1994.8,1994.7,4.5898]
[1742694727500,1.00288,1994.6,1994.5,3.21281087]
[1742694728608,1.66338,1994.6,1994.5,3.21281087]
[1742694728798,1.66338,1994.6,1994.5,4.60541087]
[1742694728799,2.34708,1994.6,1994.5,4.60541087]
[1742694734606,1.3793,1994.7,1994.6,1.00288]
[1742694734802,2.38217,1994.7,1994.6,1.3521]
[1742694735522,2.38217,1994.7,1994.6,2.35498]
[1742694736010,2.38217,1994.7,1994.6,1.3521]
[1742694737210,2.38217,1994.7,1994.6,2.35498]
[1742694738809,1.3793,1994.7,1994.6,2.35498]
[1742694740211,2.38213,1994.7,1994.6,2.35498]
[1742694741517,2.38213,1994.7,1994.6,5.56278]
[1742694746111,0.6856,1994.8,1994.7,1.00283]
[1742694746308,1.68838,1994.8,1994.7,3.08843]
[1742694746719,3.08198,1994.8,1994.7,3.08843]
[1742694751820,25.6864244,1996.1,1994.8,3.2078]
[1742694752021,1.9764,1996.0,1995.9,4.21003]
[1742694754829,2.97858,1996.0,1995.9,3.2078]
[1742694756629,1.00223,1995.9,1995.8,1.27481635]
[1742694756825,2.32643,1995.9,1995.8,0.00751635]
[1742694758727,2.32643,1995.9,1995.8,1.00979635]
[1742694758926,2.32643,1995.9,1995.8,0.00751635]
[1742694759228,3.14541635,1996.1,1995.8,0.00751635]
[1742694759229,3.2078,1997.6,1996.2,59.89969]
[1742694759432,1.00134,1997.7,1997.6,1.00133]
[1742694759731,1.3153,1997.9,1997.6,3.2078]
[1742694759932,2.31653,1997.9,1997.8,3.2078]
[1742694764141,2.31653,1997.9,1997.8,4.20908]
[1742694764637,1.3153,1997.9,1997.8,5.56278]
[1742694764838,0.00751635,1998.0,1997.9,1.00123]
[1742694765038,0.00751635,1998.0,1997.9,2.35493]
[1742694765233,1.3523,1998.2,1998.1,1.00113]
[1742694765438,1.3523,1998.2,1998.1,4.20893]
[1742694766344,2.35338,1998.2,1998.1,4.20893]
[1742694766846,1.3523,1998.2,1998.1,4.20893]
[1742694767348,0.00751635,1998.3,1998.2,1.00108]
[1742694767553,0.00751635,1998.3,1998.2,2.38768]
[1742694768244,1.00854635,1998.3,1998.2,1.3866]
[1742694768852,1.00854635,1998.3,1998.2,2.38768]
[1742694769046,1.00854635,1998.3,1998.2,1.3866]
[1742694770646,1.00854635,1998.3,1998.2,2.38768]
[1742694771849,0.00751635,1998.3,1998.2,2.38768]
[1742694773250,1.00854635,1998.3,1998.2,1.3866]
[1742694773549,2.32214635,1998.3,1998.2,1.3866]
[1742694777645,1.00108,1998.2,1998.1,3.2078]
[1742694777851,2.30928,1998.2,1998.1,4.5751]
[1742694782044,2.30928,1998.2,1998.1,3.2078]
[1742694782256,2.94008,1998.2,1998.1,3.2078]
[1742694786246,1.00123,1997.9,1997.8,1.2979]
[1742694786454,1.00123,1997.9,1997.8,4.5057]
[1742694788454,1.00123,1997.9,1997.8,3.2078]
[1742694789054,1.00128,1997.8,1997.7,0.00751635]
[1742694789258,2.30928,1997.8,1997.7,0.00751635]
[1742694790056,1.00128,1997.8,1997.7,0.00751635]
[1742694790353,1.00126,1997.9,1997.7,1.34861635]
[1742694790554,1.00126,1997.9,1997.8,3.2078]
[1742694790956,1.00126,1997.9,1997.8,4.20908]
[1742694791548,1.00126,1997.9,1997.8,3.2078]
[1742694792254,1.00128,1997.8,1997.7,1.34861635]
[1742694792455,2.31488,1997.8,1997.7,0.00751635]
[1742694793963,2.31488,1997.8,1997.7,1.26931635]
[1742694794656,2.31488,1997.8,1997.7,0.00751635]
[1742694797659,2.31488,1997.8,1997.7,1.32281635]
[1742694802062,2.31488,1997.8,1997.7,0.00751635]
[1742694804371,1.00128,1997.8,1997.7,0.00751635]
[1742694804573,1.00128,1997.8,1997.7,1.38461635]
[1742694805072,2.31818,1997.8,1997.7,1.38461635]
[1742694808877,2.31818,1997.8,1997.7,0.00751635]
[1742694812579,2.31818,1997.8,1997.7,1.37761635]
[1742694817477,1.00133,1997.7,1997.6,3.2078]
[1742694817673,2.27003,1997.7,1997.6,3.2078]
[1742694818670,1.00138,1997.6,1997.5,6.35e-06]
[1742694818875,3.7493482,1997.6,1997.5,6.35e-06]
[1742694819076,4.51270095,1997.6,1997.5,6.35e-06]
[1742694819381,3.82912927,1997.6,1997.5,6.35e-06]
[1742694819573,4.5122913,1997.6,1997.5,6.35e-06]
[1742694819777,3.82912926,1997.6,1997.5,6.35e-06]
[1742694820286,3.7493482,1997.6,1997.5,6.35e-06]